fUSD/lending_fUSD_20240107
["ID","MTS","AMOUNT","RATE_DAILY","PERIOD"]
[310659297,1704637888515,-500.0,0.00029999,2]
[310659298,1704637888524,-500.0,0.00029999,2]
[310659299,1704637888533,-500.0,0.00029999,2]
[310659300,1704637888543,-3039.55,0.00029999,2]
[310659301,1704637888553,-3039.55,0.00029999,2]
[310659302,1704637888563,-504.28117238,0.00029999,2]
[310659303,1704637888573,-3039.55,0.00029999,2]
[310659304,1704637888583,-3039.55,0.00029999,2]
[310659305,1704637888592,-500.0,0.00029999,2]
[310659306,1704637888603,-3039.55,0.00029999,2]
[310659307,1704637888613,-532.44,0.00029999,2]
[310659308,1704637888622,-3039.72,0.00029999,2]
[310659309,1704637888632,-500.0,0.00029999,2]
[310659310,1704637888641,-500.0,0.00029999,2]
[310659311,1704637888651,-500.0,0.00029999,2]
[310659312,1704637888661,-500.0,0.00029999,2]
[310659313,1704637888671,-500.0,0.00029999,2]
[310659314,1704637888680,-500.0,0.00029999,2]
[310659315,1704637888690,-1017.17,0.00029999,2]
[310659316,1704637888700,-1017.17,0.00029999,2]
[310659317,1704637888710,-500.0,0.00029999,2]
[310659318,1704637888719,-500.0,0.00029999,2]
[310659319,1704637888730,-931.43,0.00029999,2]
[310659320,1704637888740,-500.0,0.00029999,2]
[310659321,1704637888750,-500.0,0.00029999,2]
[310659322,1704637888760,-500.0,0.00029999,2]
[310659323,1704637888769,-500.0,0.00029999,2]
[310659324,1704637888779,-500.0,0.00029999,2]
[310659325,1704637888788,-500.0,0.00029999,2]
[310659326,1704637888798,-1027.53,0.00029999,2]
[310659327,1704637888810,-500.0,0.00029999,2]
[310659328,1704637888821,-1027.53,0.00029999,2]
[310659329,1704637888830,-500.0,0.00029999,2]
[310659330,1704637888840,-500.0,0.00029999,2]
[310659331,1704637888849,-500.0,0.00029999,2]
[310659332,1704637888859,-500.0,0.00029999,2]
[310659333,1704637888869,-517.06,0.00029999,2]
[310659334,1704637888879,-791.43,0.00029999,2]
[310659335,1704637888889,-517.06,0.00029999,2]
[310659336,1704637888899,-791.43,0.00029999,2]
[310659337,1704637888910,-517.06,0.00029999,2]
[310659338,1704637888920,-517.06,0.00029999,2]
[310659339,1704637888929,-517.06,0.00029999,2]
[310659340,1704637888939,-517.19,0.00029999,2]
[310659341,1704637888948,-500.0,0.00029999,2]
[310659342,1704637888958,-500.0,0.00029999,2]
[310659343,1704637888967,-500.0,0.00029999,2]
[310659344,1704637888976,-232.58,0.00029999,2]
[310659345,1704637888986,-500.0,0.00029999,2]
[310659346,1704637888995,-500.0,0.00029999,2]
[310659347,1704637889005,-500.0,0.00029999,2]
[310659348,1704637889014,-522.1645442,0.00029999,2]
[310659349,1704637889024,-500.0,0.00029999,2]
[310659350,1704637889034,-500.0,0.00029999,2]
[310659351,1704637889043,-500.0,0.00029999,2]
[310659352,1704637889053,-514.17718279,0.00029999,2]
[310659353,1704637889062,-500.0,0.00029999,2]
[310659354,1704637889072,-333.39299214,0.00029999,2]
[310659355,1704637889082,-500.0,0.00029999,2]
[310659356,1704637889091,-500.0,0.00029999,2]
[310659357,1704637889101,-500.0,0.00029999,2]
[310659358,1704637889110,-500.0,0.00029999,2]
[310659359,1704637889120,-500.0,0.00029999,2]
[310659360,1704637889129,-500.0,0.00029999,2]
[310659361,1704637889138,-500.0,0.00029999,2]
[310659362,1704637889148,-500.0,0.00029999,2]
[310659363,1704637889158,-500.0,0.00029999,2]
[310659364,1704637889167,-562.61434929,0.00029999,2]
[310659365,1704637889178,-406.87,0.00029999,2]
[310659366,1704637889188,-500.0,0.00029999,2]
[310659367,1704637889197,-500.0,0.00029999,2]
[310659368,1704637889207,-819.35,0.00029999,2]
[310659369,1704637889217,-819.35,0.00029999,2]
[310659370,1704637889226,-500.0,0.00029999,2]
[310659371,1704637889235,-500.0,0.00029999,2]
[310659372,1704637889245,-500.0,0.00029999,2]
[310659373,1704637889255,-500.0,0.00029999,2]
[310659374,1704637889265,-621.64,0.00029999,2]
[310659375,1704637889275,-500.0,0.00029999,2]
[310659376,1704637889285,-500.0,0.00029999,2]
[310659377,1704637889294,-500.0,0.00029999,2]
[310659378,1704637889306,-500.0,0.00029999,2]
[310659379,1704637889319,-590.38,0.00029999,2]
[310659380,1704637889329,-781.73,0.00029999,2]
[310659381,1704637889340,-781.73,0.00029999,2]
[310659382,1704637889350,-500.0,0.00029999,2]
[310659383,1704637889360,-500.0,0.00029999,2]
[310659384,1704637889370,-506.22300715,0.00029999,2]
[310659385,1704637889535,-3190.97,0.00029999,2]
[310659386,1704637889546,-500.0,0.00029999,2]
[310659387,1704637889556,-3190.97,0.00029999,2]
[310659388,1704637889565,-500.0,0.00029999,2]
[310659389,1704637889575,-2391.46,0.00029999,2]
[310659390,1704637889585,-2391.46,0.00029999,2]
[310659391,1704637889594,-2391.46,0.00029999,2]
[310659392,1704637889604,-2391.46,0.00029999,2]
[310659393,1704637889613,-2391.46,0.00029999,2]
[310659394,1704637889623,-2391.67,0.00029999,2]
[310659395,1704637889633,-500.0,0.00029999,2]
[310659396,1704637889642,-500.0,0.00029999,2]
[310659397,1704637889652,-500.0,0.00029999,2]
[310659398,1704637889661,-500.0,0.00029999,2]
[310659399,1704637889670,-500.0,0.00029999,2]
[310659400,1704637889679,-502.41942651,0.00029999,2]
[310659401,1704637889689,-500.0,0.00029999,2]
[310659402,1704637889699,-1482.03,0.00029999,2]
[310659403,1704637889709,-544.16,0.00029999,2]
[310659404,1704637889720,-500.0,0.00029999,2]
[310659405,1704637889730,-1482.03,0.00029999,2]
[310659406,1704637889739,-544.16,0.00029999,2]
[310659407,1704637889749,-544.16,0.00029999,2]
[310659408,1704637889759,-544.16,0.00029999,2]
[310659409,1704637889769,-544.16,0.00029999,2]
[310659410,1704637889778,-544.3,0.00029999,2]
[310659411,1704637889788,-500.0,0.00029999,2]
[310659412,1704637889797,-531.95947475,0.00029999,2]
[310659413,1704637889807,-500.0,0.00029999,2]
[310659414,1704637889817,-500.0,0.00029999,2]
[310659415,1704637889827,-504.77,0.00029999,2]
[310659416,1704637889838,-500.0,0.00029999,2]
[310659417,1704637889848,-500.0,0.00029999,2]
[310659418,1704637889858,-500.0,0.00029999,2]
[310659419,1704637889868,-500.0,0.00029999,2]
[310659420,1704637889877,-500.0,0.00029999,2]
[310659421,1704637889887,-500.0,0.00029999,2]
[310659422,1704637889898,-500.0,0.00029999,2]
[310659423,1704637889907,-506.59459519,0.00029999,2]
[310659424,1704637889916,-178.06,0.00029999,2]
[310659425,1704637889925,-500.0,0.00029999,2]
[310659426,1704637889936,-582.89,0.00029999,2]
[310659427,1704637889946,-596.99684282,0.00029999,2]
[310659428,1704637889957,-582.89,0.00029999,2]
[310659429,1704637889967,-384.34001688,0.00029999,2]
[310659430,1704637889976,-500.0,0.00029999,2]
[310659431,1704637889986,-331.99226453,0.00029999,2]
[310659432,1704637889996,-500.0,0.00029999,2]
[310659433,1704637890006,-500.0,0.00029999,2]
[310659434,1704637890016,-500.0,0.00029999,2]
[310659435,1704637890026,-511.71773684,0.00029999,2]
[310659436,1704637890037,-500.0,0.00029999,2]
[310659437,1704637890046,-590.60414249,0.00029999,2]
[310659438,1704637890058,-628.85,0.00029999,2]
[310659439,1704637890069,-500.0,0.00029999,2]
[310659440,1704637890079,-628.85,0.00029999,2]
[310659441,1704637890089,-500.0,0.00029999,2]
[310659442,1704637890099,-500.0,0.00029999,2]
[310659443,1704637890109,-500.0,0.00029999,2]
[310659444,1704637890118,-500.0,0.00029999,2]
[310659445,1704637890127,-500.0,0.00029999,2]
[310659446,1704637890137,-629.76,0.00029999,2]
[310659447,1704637890146,-1144.28,0.00029999,2]
[310659448,1704637890155,-1144.28,0.00029999,2]
[310659449,1704637890164,-1144.28,0.00029999,2]
[310659450,1704637890173,-500.0,0.00029999,2]
[310659451,1704637890182,-1144.28,0.00029999,2]
[310659452,1704637890192,-500.0,0.00029999,2]
[310659453,1704637890201,-1144.28,0.00029999,2]
[310659454,1704637890210,-1144.43,0.00029999,2]
[310659455,1704637890220,-500.0,0.00029999,2]
[310659456,1704637890229,-500.0,0.00029999,2]
[310659457,1704637890239,-500.0,0.00029999,2]
[310659458,1704637890249,-500.0,0.00029999,2]
[310659459,1704637890259,-500.0,0.00029999,2]
[310659460,1704637890269,-500.0,0.00029999,2]
[310659461,1704637890280,-500.0,0.00029999,2]
[310659462,1704637890289,-500.0,0.00029999,2]
[310659463,1704637890298,-518.60404477,0.00029999,2]
[310659464,1704637890311,-603.59,0.00029999,2]
[310659465,1704637890321,-525.86,0.00029999,2]
[310659466,1704637890331,-603.59,0.00029999,2]
[310659467,1704637890340,-500.0,0.00029999,2]
[310659468,1704637890349,-603.59,0.00029999,2]
[310659469,1704637890359,-500.0,0.00029999,2]
[310659470,1704637890370,-603.59,0.00029999,2]
[310659471,1704637890379,-549.77,0.00029999,2]
[310659472,1704637890389,-603.59,0.00029999,2]
[310659473,1704637890398,-500.0,0.00029999,2]
[310659474,1704637890407,-603.76,0.00029999,2]
[310659475,1704637890416,-500.0,0.00029999,2]
[310659476,1704637890426,-500.0,0.00029999,2]
[310659477,1704637890436,-500.0,0.00029999,2]
[310659478,1704637890445,-641.83,0.00029999,2]
[310659479,1704637890455,-300.0,0.00029999,2]
[310659480,1704637890465,-641.83,0.00029999,2]
[310659481,1704637890474,-937.95,0.00029999,2]
[310659482,1704637890483,-300.0,0.00029999,2]
[310659483,1704637890493,-937.95,0.00029999,2]
[310659484,1704637890503,-500.0,0.00029999,2]
[310659485,1704637890512,-500.0,0.00029999,2]
[310659486,1704637890521,-500.0,0.00029999,2]
[310659487,1704637890530,-500.0,0.00029999,2]
[310659488,1704637890539,-155.76331098,0.0003,4]
[310659489,1704637890549,-8806.28564995,0.0003,4]
[310659490,1704637890559,-2500.0,0.0003,2]
[310659491,1704637890569,-413.43001973,0.0003,7]
[310659492,1704637890578,-18975.35572311,0.0003,4]
[310659493,1704637890587,-155.0,0.0003,4]
[310659494,1704637890596,-3412.3377975,0.0003,3]
[310659495,1704637890606,-15579.0765494,0.0003,2]
[310659496,1704637890615,-461.40392013,0.0003,4]
[310659497,1704637890625,-72725.73724855,0.0003,4]
[310659498,1704637890634,-581.07450079,0.0003,2]
[310659499,1704637890643,-809.440986,0.0003,4]
[310659500,1704637890653,-255.15840755,0.0003,4]
[310659501,1704637890662,-449.56680823,0.0003,4]
[310659502,1704637890672,-2732.34274577,0.0003,2]
[310659503,1704637890682,-155.0,0.0003,4]
[310659504,1704637890691,-2575.58389964,0.0003,4]
[310659505,1704637890701,-155.0,0.0003,4]
[310659506,1704637890711,-155.0,0.0003,2]
[310659507,1704637890720,-690.4340935,0.0003,2]
[310659508,1704637890730,-308057.51614315,0.0003,4]
[310659509,1704637890739,-932.24457173,0.0003,4]
[310659510,1704637890749,-1000.0,0.0003,3]
[310659511,1704637890758,-1000.0,0.0003,3]
[310659512,1704637890768,-885.0,0.0003,5]
[310659513,1704637890777,-5677.696877,0.0003,2]
[310659514,1704637890788,-200.0,0.0003,2]
[310659515,1704637890797,-502.4604946,0.0003,5]
[310659516,1704637890807,-1000.0,0.00030078,10]
[310659517,1704637890817,-1381.06,0.00030099,2]
[310659518,1704637890826,-2115.91,0.00030099,2]
[310659519,1704637890835,-1652.68,0.00030099,2]
[310659520,1704637890845,-917.97,0.00030099,2]
[310659521,1704637890854,-500.0,0.00030099,2]
[310659522,1704637890864,-500.0,0.00030099,2]
[310659523,1704637890874,-500.0,0.00030099,2]
[310659524,1704637890883,-500.0,0.00030099,2]
[310659525,1704637890894,-500.0,0.00030099,2]
[310659526,1704637890903,-500.0,0.00030099,2]
[310659527,1704637890913,-607.17,0.00030099,2]
[310659528,1704637890923,-500.0,0.00030099,2]
[310659529,1704637890933,-1058.56,0.00030099,2]
[310659530,1704637890942,-500.0,0.00030099,2]
[310659531,1704637890952,-500.0,0.00030099,2]
[310659532,1704637890962,-667.45,0.00030099,2]
[310659533,1704637890972,-543.32,0.00030099,2]
[310659534,1704637890982,-627.29,0.00030099,2]
[310659535,1704637890992,-500.0,0.00030099,2]
[310659536,1704637891002,-597.89,0.00030099,2]
[310659537,1704637891012,-500.0,0.00030099,2]
[310659538,1704637891023,-500.0,0.00030099,2]
[310659539,1704637891033,-526.43,0.00030099,2]
[310659540,1704637891043,-500.0,0.00030099,2]
[310659541,1704637891053,-500.0,0.00030099,2]
[310659542,1704637891063,-514.11,0.00030099,2]
[310659543,1704637891073,-500.0,0.00030099,2]
[310659544,1704637891082,-500.0,0.00030099,2]
[310659545,1704637891092,-931.43,0.00030099,2]
[310659546,1704637891102,-500.0,0.00030099,2]
[310659547,1704637891111,-500.0,0.00030099,2]
[310659548,1704637891120,-500.0,0.00030099,2]
[310659549,1704637891129,-504.77,0.00030099,2]
[310659550,1704637891138,-341.19,0.00030099,2]
[310659551,1704637891148,-629.76,0.00030099,2]
[310659552,1704637891158,-176.19,0.00030099,2]
[310659553,1704637891167,-525.86,0.00030099,2]
[310659554,1704637891177,-681.9388194,0.000301,4]
[310659555,1704637891187,-3094.80580994,0.000301,7]
[310659556,1704637891197,-200.0,0.000301,2]
[310659557,1704637891206,-1020.89123595,0.00030136,30]
[310659558,1704637891216,-10000.0,0.00030137,2]
[310659559,1704637891226,-153.84,0.00030137,2]
[310659560,1704637891235,-155.0,0.00030137,2]
[310659561,1704637891247,-500.0,0.00030143,2]
[310659562,1704637891257,-500.0,0.00030332,2]
[310659563,1704637891266,-1771.30019938,0.00030351,2]
[310659564,1704637891276,-250.83664573,0.00030463,2]
[310659565,1704637891286,-400.96,0.00030464,2]
[310659566,1704637891295,-150.0,0.00030499,2]
[310659567,1704637891305,-500.0,0.0003052,2]
[310659568,1704637891318,-775.42,0.00030576,2]
[310659569,1704637891328,-3000.0,0.0003059,2]
[310659570,1704637891338,-1000.0,0.00030626,10]
[310659571,1704637891347,-500.0,0.00030709,2]
[310659572,1704637891357,-1500.0,0.0003073,2]
[310659573,1704637891366,-500.0,0.00030897,2]
[310659574,1704637891376,-1192.56322261,0.00030899,2]
[310659575,1704637891385,-239.86904708,0.00030899,2]
[310659576,1704637891394,-846.81,0.00030899,2]
[310659577,1704637891405,-500.0,0.00030899,2]
[310659578,1704637891415,-519.53920783,0.00030899,2]
[310659579,1704637891425,-500.0,0.00030899,2]
[310659580,1704637891435,-515.42,0.00030899,2]
[310659581,1704637891445,-317.18,0.00030899,2]
[310659582,1704637891456,-500.0,0.00030899,2]
[310659583,1704637891466,-500.0,0.00030899,2]
[310659584,1704637891475,-500.0,0.00030899,2]
[310659585,1704637891485,-535.96317007,0.00030899,2]
[310659586,1704637891495,-162.38115057,0.00030899,2]
[310659587,1704637891505,-1551.04,0.00030899,2]
[310659588,1704637891515,-500.0,0.00030899,2]
[310659589,1704637891525,-4259.52,0.00030899,2]
[310659590,1704637891534,-500.0,0.00030899,2]
[310659591,1704637891544,-575.24,0.00030899,2]
[310659592,1704637891554,-524.9336938,0.00030899,2]
[310659593,1704637891563,-500.0,0.00030899,2]
[310659594,1704637891574,-500.0,0.00030899,2]
[310659595,1704637891584,-527.17382684,0.00030899,2]
[310659596,1704637891593,-2016.6,0.00030899,2]
[310659597,1704637891604,-500.0,0.00030899,2]
[310659598,1704637891614,-302.61,0.00030899,2]
[310659599,1704637891623,-500.0,0.00030899,2]
[310659600,1704637891633,-292.47051405,0.00030899,2]
[310659601,1704637891644,-500.0,0.00030899,2]
[310659602,1704637891654,-360.36916605,0.00030899,2]
[310659603,1704637891663,-500.0,0.00030899,2]
[310659604,1704637891675,-1681.68,0.00030899,2]
[310659605,1704637891685,-500.0,0.00030899,2]
[310659606,1704637891695,-500.0,0.00030899,2]
[310659607,1704637891706,-500.0,0.00030899,2]
[310659608,1704637891715,-522.79,0.00030899,2]
[310659609,1704637891725,-500.0,0.00030899,2]
[310659610,1704637891735,-627.38,0.00030899,2]
[310659611,1704637891745,-500.0,0.00030899,2]
[310659612,1704637891755,-500.0,0.00030899,2]
[310659613,1704637891765,-529.37,0.00030899,2]
[310659614,1704637891775,-500.0,0.00030899,2]
[310659615,1704637891785,-227.26,0.00030899,2]
[310659616,1704637891795,-500.0,0.00030899,2]
[310659617,1704637891805,-222.04775086,0.00030899,2]
[310659618,1704637891816,-500.0,0.00030899,2]
[310659619,1704637891825,-500.0,0.00030899,2]
[310659620,1704637891834,-500.0,0.00030899,2]
[310659621,1704637891843,-1024.89,0.00030899,2]
[310659622,1704637891853,-500.0,0.00030899,2]
[310659623,1704637891863,-500.0,0.00030899,2]
[310659624,1704637891873,-500.0,0.00030899,2]
[310659625,1704637891882,-500.0,0.00030899,2]
[310659626,1704637891891,-500.0,0.00030899,2]
[310659627,1704637891901,-493.01871421,0.00030899,2]
[310659628,1704637891911,-354.31697812,0.00030899,2]
[310659629,1704637891920,-500.0,0.00030899,2]
[310659630,1704637891929,-528.08281009,0.00030899,2]
[310659631,1704637891939,-500.0,0.00030899,2]
[310659632,1704637891949,-500.0,0.00030899,2]
[310659633,1704637891959,-500.0,0.00030899,2]
[310659634,1704637891969,-500.0,0.00030899,2]
[310659635,1704637891978,-500.0,0.00030899,2]
[310659636,1704637891988,-515.95483043,0.00030899,2]
[310659637,1704637891997,-1027.53,0.00030899,2]
[310659638,1704637892007,-511.48183305,0.00030899,2]
[310659639,1704637892016,-500.0,0.00030899,2]
[310659640,1704637892026,-500.0,0.00030899,2]
[310659641,1704637892036,-500.0,0.00030899,2]
[310659642,1704637892047,-500.0,0.00030899,2]
[310659643,1704637892056,-500.0,0.00030899,2]
[310659644,1704637892066,-520.36783882,0.00030899,2]
[310659645,1704637892075,-500.0,0.00030899,2]
[310659646,1704637892085,-500.0,0.00030899,2]
[310659647,1704637892094,-626.25849693,0.00030899,2]
[310659648,1704637892103,-511.14474627,0.00030899,2]
[310659649,1704637892114,-500.0,0.00030899,2]
[310659650,1704637892123,-500.0,0.00030899,2]
[310659651,1704637892133,-405.86,0.00030899,2]
[310659652,1704637892142,-524.29291576,0.00030899,2]
[310659653,1704637892152,-500.0,0.00030899,2]
[310659654,1704637892161,-509.3635717,0.00030899,2]
[310659655,1704637892171,-781.73,0.00030899,2]
[310659656,1704637892180,-500.0,0.00030899,2]
[310659657,1704637892190,-500.0,0.00030899,2]
[310659658,1704637892199,-508.40493217,0.00030899,2]
[310659659,1704637892209,-500.0,0.00030899,2]
[310659660,1704637892219,-500.0,0.00030899,2]
[310659661,1704637892229,-500.0,0.00030899,2]
[310659662,1704637892239,-1482.03,0.00030899,2]
[310659663,1704637892249,-244.76835903,0.00030899,2]
[310659664,1704637892260,-432.98919723,0.00030899,2]
[310659665,1704637892269,-500.0,0.00030899,2]
[310659666,1704637892279,-500.0,0.00030899,2]
[310659667,1704637892289,-582.89,0.00030899,2]
[310659668,1704637892299,-500.0,0.00030899,2]
[310659669,1704637892309,-500.0,0.00030899,2]
[310659670,1704637892322,-500.0,0.00030899,2]
[310659671,1704637892332,-297.23635134,0.00030899,2]
[310659672,1704637892342,-500.0,0.00030899,2]
[310659673,1704637892352,-500.0,0.00030899,2]
[310659674,1704637892361,-500.0,0.00030899,2]
[310659675,1704637892371,-500.0,0.00030899,2]
[310659676,1704637892380,-565.72,0.00030899,2]
[310659677,1704637892390,-500.0,0.00030899,2]
[310659678,1704637892400,-500.0,0.00030899,2]
[310659679,1704637892410,-500.0,0.00030899,2]
[310659680,1704637892421,-500.0,0.00030899,2]
[310659681,1704637892431,-500.0,0.00030899,2]
[310659682,1704637892440,-300.0,0.00030899,2]
[310659683,1704637892451,-937.95,0.00030899,2]
[310659684,1704637892461,-300.0,0.00030899,2]
[310659685,1704637892471,-500.0,0.00030899,2]
[310659686,1704637892481,-500.0,0.00030899,2]
[310659687,1704637892491,-508.99486188,0.00030899,2]
[310659688,1704637892501,-715.64132272,0.000309,4]
[310659689,1704637892511,-304.715023,0.000309,2]
[310659690,1704637892658,-304.715023,0.000309,2]
[310659691,1704637892669,-1964.456485,0.000309,2]
[310659692,1704637892679,-1964.456484,0.000309,2]
[310659693,1704637892689,-300.0,0.000309,3]
[310659694,1704637892699,-186.810689,0.000309,3]
[310659695,1704637892708,-886.305934,0.000309,2]
[310659696,1704637892717,-150.0,0.000309,2]
[310659697,1704637892726,-48180.20345888,0.000309,2]
[310659698,1704637892736,-450.0,0.0003098,3]
[310659699,1704637892747,-3000.0,0.0003099,2]
[310659700,1704637892756,-1381.06,0.00030999,2]
[310659701,1704637892766,-2115.91,0.00030999,2]
[310659702,1704637892775,-1652.68,0.00030999,2]
[310659703,1704637892785,-917.97,0.00030999,2]
[310659704,1704637892795,-211.64065576,0.00030999,2]
[310659705,1704637892805,-500.0,0.00030999,2]
[310659706,1704637892816,-500.0,0.00030999,2]
[310659707,1704637892826,-500.0,0.00030999,2]
[310659708,1704637892834,-500.0,0.00030999,2]
[310659709,1704637892843,-972.61,0.00030999,2]
[310659710,1704637892853,-500.0,0.00030999,2]
[310659711,1704637892862,-7305.55,0.00030999,2]
[310659712,1704637892871,-500.0,0.00030999,2]
[310659713,1704637892881,-607.17,0.00030999,2]
[310659714,1704637892890,-500.0,0.00030999,2]
[310659715,1704637892900,-1058.56,0.00030999,2]
[310659716,1704637892910,-500.0,0.00030999,2]
[310659717,1704637892919,-620.50672149,0.00030999,2]
[310659718,1704637892929,-667.45,0.00030999,2]
[310659719,1704637892938,-543.32,0.00030999,2]
[310659720,1704637892948,-500.0,0.00030999,2]
[310659721,1704637892958,-627.29,0.00030999,2]
[310659722,1704637892967,-500.0,0.00030999,2]
[310659723,1704637892976,-574.18,0.00030999,2]
[310659724,1704637892986,-597.89,0.00030999,2]
[310659725,1704637892996,-500.0,0.00030999,2]
[310659726,1704637893006,-500.0,0.00030999,2]
[310659727,1704637893016,-500.0,0.00030999,2]
[310659728,1704637893026,-526.43,0.00030999,2]
[310659729,1704637893036,-500.0,0.00030999,2]
[310659730,1704637893045,-500.0,0.00030999,2]
[310659731,1704637893055,-514.11,0.00030999,2]
[310659732,1704637893064,-500.0,0.00030999,2]
[310659733,1704637893074,-653.0,0.00030999,2]
[310659734,1704637893083,-500.0,0.00030999,2]
[310659735,1704637893092,-500.0,0.00030999,2]
[310659736,1704637893103,-401.51,0.00030999,2]
[310659737,1704637893112,-184.45,0.00030999,2]
[310659738,1704637893121,-857.86,0.00030999,2]
[310659739,1704637893131,-1017.17,0.00030999,2]
[310659740,1704637893141,-931.43,0.00030999,2]
[310659741,1704637893151,-500.0,0.00030999,2]
[310659742,1704637893161,-500.0,0.00030999,2]
[310659743,1704637893170,-500.0,0.00030999,2]
[310659744,1704637893180,-791.43,0.00030999,2]
[310659745,1704637893189,-535.64,0.00030999,2]
[310659746,1704637893200,-231.93,0.00030999,2]
[310659747,1704637893210,-819.35,0.00030999,2]
[310659748,1704637893220,-3190.97,0.00030999,2]
[310659749,1704637893230,-580.72,0.00030999,2]
[310659750,1704637893240,-201.8583747,0.00030999,2]
[310659751,1704637893249,-504.77,0.00030999,2]
[310659752,1704637893261,-500.0,0.00030999,2]
[310659753,1704637893270,-500.0,0.00030999,2]
[310659754,1704637893282,-628.85,0.00030999,2]
[310659755,1704637893292,-500.0,0.00030999,2]
[310659756,1704637893301,-629.76,0.00030999,2]
[310659757,1704637893311,-500.0,0.00030999,2]
[310659758,1704637893324,-500.0,0.00030999,2]
[310659759,1704637893334,-525.86,0.00030999,2]
[310659760,1704637893343,-354.91313822,0.00030999,2]
[310659761,1704637893352,-515.00926212,0.00030999,2]
[310659762,1704637893362,-641.83,0.00030999,2]
[310659763,1704637893371,-50000.0,0.00031,2]
[310659764,1704637893381,-1200.0,0.00031,32]
[310659765,1704637893391,-83019.52364121,0.00031,7]
[310659766,1704637893401,-1500.0,0.00031,2]
[310659767,1704637893411,-3026.92781969,0.00031,2]
[310659768,1704637893421,-1000.0,0.00031,3]
[310659769,1704637893430,-750.0,0.00031,3]
[310659770,1704637893439,-1001.0,0.00031,3]
[310659771,1704637893449,-1551.04,0.00031018,2]
[310659772,1704637893458,-4259.52,0.00031018,2]
[310659773,1704637893468,-575.24,0.00031018,2]
[310659774,1704637893478,-2016.6,0.00031018,2]
[310659775,1704637893487,-383.65,0.00031018,2]
[310659776,1704637893496,-500.0,0.00031018,2]
[310659777,1704637893506,-1681.68,0.00031018,2]
[310659778,1704637893516,-529.37,0.00031018,2]
[310659779,1704637893525,-1024.89,0.00031018,2]
[310659780,1704637893535,-500.0,0.00031018,2]
[310659781,1704637893545,-1027.53,0.00031018,2]
[310659782,1704637893555,-449.26,0.00031018,2]
[310659783,1704637893567,-781.73,0.00031018,2]
[310659784,1704637893576,-1482.03,0.00031018,2]
[310659785,1704637893585,-582.89,0.00031018,2]
[310659786,1704637893595,-500.0,0.00031018,2]
[310659787,1704637893604,-500.0,0.00031018,2]
[310659788,1704637893614,-937.95,0.00031018,2]
[310659789,1704637893623,-58000.0,0.00031019,3]
[310659790,1704637893633,-846.81,0.00031027,2]
[310659791,1704637893643,-500.0,0.00031027,2]
[310659792,1704637893653,-394.34,0.00031027,2]
[310659793,1704637893662,-607.57722458,0.00031027,2]
[310659794,1704637893671,-353.93759376,0.00031027,2]
[310659795,1704637893681,-500.0,0.00031027,2]
[310659796,1704637893690,-500.0,0.00031027,2]